bitfinex-derivatives/quotes_SOLF0:USTF0_20250207
["timestamp","ask_amount","ask_price","bid_price","bid_amount"]
[1738961130782,0.03942894,190.96,190.93,0.03337881]
[1738961131386,5.2364,190.94,190.93,0.03337881]
[1738961131780,5.2364,190.94,190.93,7.881e-05]
[1738961133686,23.70422866,190.96,190.82,5.2397]
[1738961133889,5.2387,190.86,190.81,14.3067]
[1738961134591,23.66479972,190.93,190.81,14.3067]
[1738961134782,23.66479972,190.93,190.82,5.2397]
[1738961134987,0.03338884,190.89,190.85,0.03488436]
[1738961135188,9.1036,190.99,190.86,23.66479972]
[1738961135387,9.1036,190.99,190.92,5.2369]
[1738961135589,13.08,191.0,190.89,23.66479972]
[1738961135989,13.08,191.0,190.92,23.66479972]
[1738961136284,13.08,191.0,190.95,23.66479972]
[1738961136489,6.761e-05,190.98,190.96,3.8067]
[1738961136687,14.9469,191.01,190.99,23.66479972]
[1738961136882,41.50293577,191.08,190.99,23.66479972]
[1738961137082,5.234,191.03,190.96,27.47149972]
[1738961137290,41.50293577,191.08,190.96,27.47149972]
[1738961137490,41.50293577,191.08,190.96,23.66479972]
[1738961137789,0.03821423,191.03,191.0,0.03492466]
[1738961138286,0.03821423,191.03,191.01,5.2345]
[1738961138486,0.03821423,191.03,191.0,0.03492466]
[1738961140092,0.03821423,191.03,191.0,5.26942466]
[1738961140291,0.03821423,191.03,191.0,0.03492466]
[1738961140591,31.05821423,191.03,191.0,0.03492466]
[1738961140795,5.2342,191.02,191.0,0.03492466]
[1738961140987,31.05821423,191.03,191.0,0.03492466]
[1738961141394,5.2345,191.01,191.0,2.466e-05]
[1738961142591,43.70567083,191.01,191.0,2.466e-05]
[1738961143193,5.2359,190.96,190.84,5.239]
[1738961143394,4.2907,190.95,190.84,5.239]
[1738961144096,5.2377,190.9,190.85,5.2389]
[1738961144284,4.2907,190.95,190.83,3.0626]
[1738961144489,0.03618482,190.91,190.88,0.03980702]
[1738961145094,0.03618482,190.91,190.88,5.27790702]
[1738961145484,0.03618482,190.91,190.88,0.03980702]
[1738961145694,5.2377,190.9,190.88,0.03980702]
[1738961146490,0.03618482,190.91,190.88,0.03980702]
[1738961146691,5.27338482,190.91,190.88,0.03980702]
[1738961147490,0.03618482,190.91,190.88,0.03980702]
[1738961147692,5.2378,190.89,190.88,0.03980702]
[1738961147996,5.2378,190.89,190.88,7.02e-06]
[1738961150599,0.03618482,190.91,190.82,4.73960702]
[1738961150997,13.12618482,190.91,190.82,4.73960702]
[1738961151499,51.59735565,190.91,190.76,38.47117083]
[1738961151695,2.8209,190.9,190.76,38.47117083]
[1738961151893,0.03893059,190.85,190.82,0.03531192]
[1738961152694,0.03893059,190.85,190.84,5.2392]
[1738961153195,5.2378,190.9,190.86,5.2385]
[1738961153592,5.2378,190.9,190.82,38.47117083]
[1738961153794,18.3273,190.91,190.87,5.2383]
[1738961154292,5.2375,190.9,190.87,0.03433799]
[1738961154899,17.31743343,190.91,190.87,0.03433799]
[1738961155100,5.2379,190.89,190.87,0.03433799]
[1738961155295,17.31743343,190.91,190.87,0.03433799]
[1738961155697,5.2381,190.88,190.87,0.03433799]
[1738961156399,5.2378,190.89,190.87,0.03433799]
[1738961156801,9.4278,190.89,190.87,0.03433799]
[1738961157298,4.19,190.89,190.88,5.2381]
[1738961158300,1.47263343,190.91,190.9,5.2375]
[1738961158496,20.6339,190.92,190.88,38.47117083]
[1738961158697,4.0013,191.0,190.9,23.69105932]
[1738961158901,4.0013,191.0,190.87,23.69105932]
[1738961159400,27.69235932,191.0,190.86,3.0013]
[1738961159704,0.03489082,190.95,190.92,0.03481662]
[1738961159905,5.2367,190.93,190.92,1.662e-05]
[1738961160599,10.4667,190.93,190.92,1.662e-05]
[1738961161404,13.5117,190.93,190.92,1.662e-05]
[1738961164303,5.23,190.93,190.92,1.662e-05]
[1738961166409,10.4667,190.93,190.92,1.662e-05]
[1738961167508,5.23,190.93,190.92,5.23701662]
[1738961168209,0.03489082,190.95,190.92,1.662e-05]
[1738961168510,0.03489082,190.95,190.94,5.2364]
[1738961168710,0.03489082,190.95,190.92,1.662e-05]
[1738961169210,0.03489082,190.95,190.93,5.2364]
[1738961169407,0.28489082,190.95,190.92,1.662e-05]
[1738961171110,0.28489082,190.95,190.94,5.2364]
[1738961171307,0.28489082,190.95,190.92,1.662e-05]
[1738961172305,5.2367,190.93,190.92,1.662e-05]
[1738961178516,4.0768,190.94,190.92,1.662e-05]
[1738961179313,5.2367,190.93,190.92,1.662e-05]
[1738961182408,5.2405,190.79,190.75,5.2415]
[1738961182614,5.2405,190.79,190.7,23.69105932]
[1738961182816,13.1,190.79,190.7,23.69105932]
[1738961183523,0.03798212,190.78,190.75,0.0398257]
[1738961184411,0.03798212,190.78,190.77,5.2411]
[1738961184618,20.96,190.79,190.76,23.69105932]
[1738961184816,4.2994,190.9,190.76,23.69105932]
[1738961185119,4.2994,190.9,190.75,0.0398257]
[1738961185120,5.2381,190.88,190.83,5.2394]
[1738961185317,4.2994,190.9,190.8,23.69105932]
[1738961185710,5.27298269,190.87,190.83,0.03967438]
[1738961186115,6.06298269,190.87,190.83,0.03967438]
[1738961186709,14.44298269,190.87,190.83,0.03967438]
[1738961187314,9.20468269,190.87,190.83,0.03967438]
[1738961187719,9.20468269,190.87,190.86,5.2386]
[1738961187920,9.20468269,190.87,190.83,0.03967438]
[1738961188319,14.44308269,190.87,190.83,0.03967438]
[1738961188617,9.20468269,190.87,190.83,0.03967438]
[1738961188823,5.2391,190.85,190.83,0.03967438]
[1738961189023,9.20468269,190.87,190.83,0.03967438]
[1738961189621,9.20468269,190.87,190.83,5.27887438]
[1738961190724,0.25,190.86,190.83,5.27887438]
[1738961191826,0.25,190.86,190.83,0.03967438]
[1738961192127,9.20468269,190.87,190.83,23.7307337]
[1738961192332,20.95,190.92,190.86,23.69105932]
[1738961192534,20.95,190.92,190.91,5.2372]
[1738961192833,106.61274609,190.98,190.86,23.69105932]
[1738961193025,5.2361,190.96,190.89,5.2376]
[1738961193223,5.2361,190.96,190.86,23.69105932]
[1738961193224,106.61274609,190.98,190.86,23.69105932]
[1738961193423,0.03832014,190.94,190.91,0.03544789]
[1738961194430,5.2367,190.93,190.91,0.03544789]
[1738961195635,5.27482014,190.94,190.91,0.03544789]
[1738961196135,0.03832014,190.94,190.91,5.27264789]
[1738961197932,5.237,190.92,190.91,0.03544789]
[1738961198236,0.03832014,190.94,190.79,23.69105932]
[1738961198430,7.1492,190.93,190.79,23.69105932]
[1738961198627,5.238,190.89,190.83,5.2394]
[1738961198831,7.1492,190.93,190.79,23.69105932]
[1738961199029,23.69105932,190.92,190.76,23.69105932]
[1738961199227,191.0,190.91,190.77,5.2411]
[1738961199430,0.04000968,190.86,190.82,0.03723489]
[1738961200036,5.2394,190.83,190.82,0.03723489]
[1738961200535,5.2402,190.81,190.76,5.2413]
[1738961201734,0.04015498,190.8,190.77,0.03560484]
[1738961203036,0.04015498,190.8,190.77,5.27670484]
[1738961203735,0.04015498,190.8,190.77,0.03560484]
[1738961204135,20.96,190.82,190.79,23.69105932]
[1738961204330,5.2375,190.91,190.85,5.2388]
[1738961204734,82.17757056,190.93,190.85,23.69105932]
[1738961205038,82.17757056,190.93,190.92,5.237]
[1738961205429,82.17757056,190.93,190.87,0.03474729]
[1738961205628,0.0399918,190.94,190.87,0.03474729]
[1738961206029,5.2765918,190.94,190.88,5.2378]
[1738961206338,0.0399918,190.94,190.87,0.03474729]
[1738961206840,5.237,190.92,190.87,5.27284729]
[1738961207035,0.0399918,190.94,190.87,5.27284729]
[1738961207234,0.0399918,190.94,190.87,0.03474729]
[1738961207432,5.2371,190.92,190.87,0.03474729]
[1738961207836,5.2373,190.91,190.87,5.27304729]
[1738961208042,0.0399918,190.94,190.87,0.03474729]
[1738961208739,0.0399918,190.94,190.89,5.2378]
[1738961208940,0.0399918,190.94,190.87,0.03474729]
[1738961209744,5.2372,190.92,190.87,5.27284729]
[1738961209943,0.0399918,190.94,190.87,0.03474729]
[1738961210144,5.2381,190.88,190.87,0.03474729]
[1738961211741,5.2392,190.84,190.76,29.16096567]
[1738961212142,26.59055932,190.92,190.81,5.2399]
[1738961212436,4.2437,190.91,190.81,5.2399]
[1738961212641,5.2389,190.85,190.81,5.2399]
[1738961213038,5.2389,190.85,190.84,0.03792174]
[1738961213241,5.2386,190.86,190.84,0.03792174]
[1738961213443,0.03593554,190.88,190.84,0.03792174]
[1738961213644,5.2384,190.87,190.84,0.03792174]
[1738961213840,0.03593554,190.88,190.84,0.03792174]
[1738961214748,5.2388,190.86,190.84,0.03792174]
[1738961214943,0.03593554,190.88,190.84,0.03792174]
[1738961215247,0.03593554,190.88,190.87,5.2383]
[1738961216144,0.03593554,190.88,190.84,0.03792174]
[1738961217749,4.22593554,190.88,190.84,0.03792174]
[1738961217941,4.22593554,190.88,190.74,103.64]
[1738961217942,7.13763554,190.88,190.74,103.64]
[1738961218140,7.1017,190.88,190.74,103.64]
[1738961218340,7.1017,190.88,190.74,109.11234344]
[1738961218546,5.2399,190.82,190.78,5.2408]
[1738961219142,5.27902535,190.82,190.78,5.27763654]
[1738961219344,4.19,190.88,190.78,0.03683654]
[1738961219549,4.19,190.89,190.86,23.69105932]
[1738961219754,4.19,190.89,190.83,23.69105932]
[1738961220347,4.19,190.89,190.77,23.69105932]
[1738961220549,7.14439092,190.88,190.84,0.03541785]
[1738961221051,7.14422453,190.88,190.84,0.03853332]
[1738961221653,12.38252453,190.88,190.84,0.03853332]
[1738961221843,7.14422453,190.88,190.84,0.03853332]
[1738961222649,7.14422453,190.88,190.74,109.11234344]
[1738961222850,7.1043,190.88,190.74,109.11234344]
[1738961223558,7.1043,190.88,190.76,5.2411]
[1738961223958,0.03812527,190.83,190.79,0.03733539]
[1738961224153,5.2401,190.81,190.79,0.03733539]
[1738961226057,0.03812527,190.83,190.79,0.03733539]
[1738961226659,5.2403,190.8,190.79,0.03733539]
[1738961227160,5.24,190.81,190.79,0.03733539]
[1738961227356,0.03812527,190.83,190.79,0.03733539]
[1738961227759,5.2403,190.8,190.79,0.03733539]
[1738961228058,20.99812527,190.83,190.79,0.03733539]
[1738961228259,5.2399,190.82,190.79,0.03733539]
[1738961228460,20.99812527,190.83,190.79,0.03733539]
[1738961228962,48.87918459,190.83,190.7,5.47327584]
[1738961229160,191.0,190.82,190.65,23.69105932]
[1738961229358,191.0,190.82,190.69,5.243]
[1738961229359,5.2421,190.74,190.69,5.243]
[1738961229562,2.8442,190.81,190.68,23.69105932]
[1738961230060,5.28173184,190.76,190.73,0.03737434]
[1738961230256,0.04013184,190.76,190.73,0.03737434]
[1738961230653,5.28153184,190.76,190.73,0.03737434]
[1738961231263,5.2417,190.75,190.73,0.03737434]
[1738961231463,0.04013184,190.76,190.73,0.03737434]
[1738961231659,0.04013184,190.76,190.74,5.2419]
[1738961231863,0.04013184,190.76,190.73,0.03737434]
[1738961232363,5.2419,190.74,190.73,0.03737434]
[1738961232760,5.2427,190.72,190.67,5.2436]
[1738961232961,5.2427,190.72,190.65,23.69105932]
[1738961233363,5.2427,190.72,190.67,5.2436]
[1738961233557,5.2427,190.72,190.65,23.69105932]
[1738961233865,0.03544176,190.7,190.67,0.03935901]
[1738961234466,0.03544176,190.7,190.69,5.2433]
[1738961235068,2.8442,190.81,190.68,23.69105932]
[1738961235364,25.15,190.83,190.75,23.69105932]
[1738961236164,30.3897,190.83,190.78,5.2407]
[1738961236365,0.03735115,190.81,190.77,0.03320529]
[1738961236767,5.2405,190.8,190.77,0.03320529]
[1738961237171,0.03735115,190.81,190.77,0.03320529]
[1738961237374,0.03735115,190.81,190.69,23.69105932]
[1738961237571,0.03735115,190.81,190.66,23.69105932]
[1738961237767,48.84105932,190.83,190.66,23.69105932]
[1738961238071,48.84105932,190.83,190.69,5.2432]
[1738961238072,191.0,190.82,190.69,5.2432]
[1738961238273,23.69105932,190.8,190.63,23.69105932]
[1738961238572,198.1903,190.79,190.63,23.69105932]
[1738961238764,0.0350605,190.73,190.7,0.03459044]
[1738961239671,21.0050605,190.73,190.7,0.03459044]
[1738961240772,21.0050605,190.73,190.65,5.2443]
[1738961240970,21.0050605,190.73,190.63,23.69105932]
[1738961241171,25.1950605,190.73,190.66,23.69105932]
[1738961241370,25.16,190.73,190.71,5.2427]
[1738961241873,25.16,190.73,190.68,5.2435]
[1738961242071,25.16,190.73,190.66,23.69105932]
[1738961242072,25.16,190.73,190.7,0.03473658]
[1738961242269,30.4023,190.73,190.7,0.03473658]
[1738961242469,53.09,190.73,190.7,0.03473658]
[1738961242870,5.2425,190.72,190.7,0.03473658]
[1738961243065,53.09,190.73,190.7,0.03473658]
[1738961243475,58.3324,190.73,190.7,0.03473658]
[1738961243673,53.09,190.73,190.7,0.03473658]
[1738961244676,53.09,190.73,190.7,5.27773658]
[1738961244875,53.09,190.73,190.7,0.03473658]
[1738961245877,5.2427,190.71,190.7,0.03473658]
[1738961247986,5.2432,190.7,190.66,5.2441]
[1738961248985,5.2428,190.71,190.66,5.2441]
[1738961249185,0.03573078,190.7,190.64,5.2445]
[1738961249389,0.03573078,190.7,190.62,23.69105932]
[1738961249884,21.00573078,190.7,190.62,23.69105932]
[1738961250088,21.00573078,190.7,190.65,23.69105932]
[1738961250391,21.00573078,190.7,190.68,23.69105932]
[1738961250680,21.00573078,190.7,190.65,23.69105932]
[1738961250887,21.00573078,190.7,190.62,23.69105932]
[1738961251087,21.00573078,190.7,190.69,5.2433]
[1738961252785,21.00573078,190.7,190.62,23.69105932]
[1738961252987,21.00573078,190.7,190.65,23.69105932]
[1738961253390,21.00573078,190.7,190.69,5.2433]
[1738961254287,25.19573078,190.7,190.69,5.2433]
[1738961254590,32.12,190.73,190.72,5.2425]
[1738961256489,32.12,190.73,190.71,0.03812252]
[1738961256490,4.19,190.75,190.71,23.72918184]
[1738961256690,4.19,190.75,190.74,23.69105932]
[1738961256887,5.2395,190.83,190.74,23.69105932]
[1738961257588,25.15,190.81,190.74,23.69105932]
[1738961257783,0.0360626,190.79,190.78,5.2407]
[1738961258289,0.0360626,190.79,190.76,0.03479342]
[1738961258488,0.0360626,190.79,190.76,5.27619342]
[1738961258889,0.0360626,190.79,190.76,0.03479342]
[1738961259586,5.2766626,190.79,190.76,0.03479342]
[1738961259787,0.0360626,190.79,190.76,0.03479342]
[1738961260489,0.0360626,190.79,190.78,5.2408]
[1738961261190,4.57,190.81,190.8,5.2403]
[1738961261384,4.57,190.81,190.8,28.93135932]
[1738961262187,4.57,190.81,190.77,23.69105932]
[1738961263288,4.57,190.81,190.8,5.2403]
[1738961264585,4.57,190.81,190.78,5.2408]
[1738961264789,4.57,190.81,190.76,0.03479342]
[1738961264790,9.8102,190.81,190.76,0.03479342]
[1738961264991,4.57,190.81,190.76,0.03479342]
[1738961265495,9.8102,190.81,190.76,0.03479342]
[1738961265894,9.8102,190.81,190.77,5.2409]
[1738961265895,4.57,190.81,190.77,5.2409]
[1738961266096,4.57,190.81,190.76,0.03479342]
[1738961267797,4.57,190.81,190.8,5.2403]
[1738961269897,4.57,190.81,190.76,0.03479342]
[1738961270592,11.7789,190.81,190.76,0.03479342]
[1738961270892,5.2403,190.8,190.77,5.2408]
[1738961271099,5.2403,190.8,190.76,0.03479342]
[1738961271397,5.2408,190.78,190.76,0.03479342]
[1738961271989,5.2406,190.79,190.76,0.03479342]
[1738961272188,82.17757056,190.95,190.78,23.69105932]
[1738961272390,10.1331,190.9,190.78,23.69105932]
[1738961272698,10.1331,190.9,190.87,5.2383]
[1738961273096,103.12757056,190.92,190.84,23.69105932]
[1738961273399,107.31757056,190.92,190.87,23.69105932]
[1738961273595,0.03666417,190.9,190.87,23.69105932]
[1738961273992,0.03666417,190.9,190.89,5.2378]
[1738961274197,107.31757056,190.92,190.87,23.69105932]
[1738961274500,77.75038023,190.94,190.93,5.2367]
[1738961274696,60.37128023,190.94,190.93,28.92775932]
[1738961274896,50.80542506,190.94,190.93,28.92775932]
[1738961275503,50.80542506,190.94,190.93,23.69105932]
[1738961275703,50.80542506,190.94,190.92,0.03650171]
[1738961275902,0.0352543,190.95,190.92,0.03650171]
[1738961277698,4.18,190.96,190.92,23.72756103]
[1738961277905,20.94,191.02,190.95,23.69105932]
[1738961278197,20.94,191.02,190.96,5.2356]
[1738961278410,20.94,191.02,190.95,23.69105932]
[1738961278601,4.2647,191.03,190.95,23.69105932]
[1738961278993,0.03967142,191.01,190.97,0.0383222]
[1738961281100,0.03967142,191.01,190.98,23.69105932]
[1738961281404,4.18,191.03,191.01,23.69105932]
[1738961281902,4.18,191.03,190.97,0.0383222]
[1738961282099,9.4141,191.03,190.97,0.0383222]
[1738961282305,0.03450716,191.02,190.97,0.0383222]
[1738961282805,7.23580716,191.02,190.97,0.0383222]
[1738961284004,7.23580716,191.02,190.97,5.2739222]
[1738961284305,5.2348,191.0,190.97,0.0383222]
[1738961284499,7.23580716,191.02,190.97,0.0383222]
[1738961284701,7.23580716,191.02,190.9,23.69105932]
[1738961284902,7.23580716,191.02,190.77,249.75110583]
[1738961284903,7.23580716,191.02,190.87,23.69105932]
[1738961285103,7.2013,191.02,190.87,23.69105932]
[1738961285402,5.2362,190.95,190.88,5.2378]
[1738961285602,198.2013,191.02,190.88,5.2378]
[1738961285803,198.2013,191.02,190.87,23.69105932]
[1738961286002,0.03608157,190.97,190.93,0.03379952]
[1738961287204,0.03608157,190.97,190.81,23.69105932]
[1738961287404,23.69105932,190.98,190.81,23.69105932]
[1738961287905,23.69105932,190.98,190.84,5.2389]
[1738961288204,23.69105932,190.98,190.89,0.03989255]
[1738961288405,5.2373,190.91,190.84,5.2389]
[1738961289004,7.3317,190.92,190.87,5.2383]
[1738961289710,7.3317,190.92,190.88,0.03337397]
[1738961289906,12.5687,190.92,190.88,0.03337397]
[1738961290104,7.3317,190.92,190.88,0.03337397]
[1738961290602,5.2375,190.91,190.88,0.03337397]
[1738961290806,7.3317,190.92,190.85,5.2386]
[1738961291001,7.3317,190.92,190.8,103.74]
[1738961291608,5.2384,190.87,190.82,5.2396]
[1738961291813,7.3317,190.92,190.8,103.74]
[1738961292111,0.03927242,190.86,190.83,0.03835141]
[1738961292412,0.03927242,190.86,190.8,103.74]
[1738961292802,5.2391,190.85,190.8,108.98]
[1738961293410,5.2392,190.84,190.8,108.98]
[1738961293610,5.2392,190.84,190.81,0.03506171]
[1738961294408,5.2395,190.83,190.8,103.74]
[1738961294712,20.98927242,190.86,190.8,103.74]
[1738961294907,5.2397,190.82,190.8,103.74]
[1738961295113,44.68033174,190.86,190.8,66.8799]
[1738961295413,4.19,190.82,190.8,57.4608]
[1738961295619,4.19,190.82,190.7,0.1454]
[1738961296116,5.2411,190.78,190.72,5.2422]
[1738961296412,4.19,190.82,190.72,5.2422]
[1738961296610,5.2417,190.75,190.7,5.243]
[1738961297013,0.03504129,190.74,190.7,5.243]
[1738961297820,0.03504129,190.74,190.71,5.2427]
[1738961299414,0.03504129,190.74,190.66,29.16469386]
[1738961300115,5.27694129,190.74,190.66,29.16469386]
[1738961300706,0.03504129,190.74,190.68,5.2434]
[1738961300912,0.03504129,190.74,190.64,103.68]
[1738961303620,5.2424,190.73,190.67,5.2438]
[1738961303921,0.03504129,190.74,190.67,5.2438]
[1738961304316,5.2426,190.72,190.67,5.2438]
[1738961304822,21.00504129,190.74,190.64,103.68]
[1738961305121,5.243,190.71,190.64,103.68]
[1738961305322,5.27792514,190.71,190.64,103.68]
[1738961305623,5.27792514,190.71,190.66,5.2441]
[1738961305825,0.03492514,190.71,190.64,103.68]
[1738961306423,0.03492514,190.71,190.66,23.69105932]
[1738961306824,5.243,190.7,190.64,103.68]
[1738961307328,0.03492514,190.71,190.64,103.68]
[1738961308330,0.03492514,190.71,190.66,5.2441]
[1738961308522,0.03492514,190.71,190.64,103.68]
[1738961308728,0.03492514,190.71,190.66,23.69105932]
[1738961308926,0.03492514,190.71,190.69,5.2431]
[1738961309124,0.03492514,190.71,190.64,103.68]
[1738961309328,5.2432,190.7,190.66,5.2439]
[1738961310334,5.27772514,190.71,190.64,103.68]
[1738961310527,5.27772514,190.71,190.67,5.2437]
[1738961310731,0.03492514,190.71,190.64,103.68]
[1738961310932,5.27792514,190.71,190.64,103.68]
[1738961311132,5.27792514,190.71,190.66,5.2439]
[1738961311434,5.27792514,190.71,190.64,103.68]
[1738961311630,5.27792514,190.71,190.66,5.2439]
[1738961311631,5.2431,190.7,190.66,5.2439]
[1738961311830,0.03492514,190.71,190.64,103.68]
[1738961312225,5.2435,190.69,190.64,108.9244]
[1738961312633,25.16,190.69,190.64,103.68]
[1738961314540,25.16,190.69,190.54,23.69105932]
[1738961314739,219.176,190.69,190.54,23.69105932]
[1738961314942,5.2455,190.62,190.56,5.2467]
[1738961315237,0.0378906,190.63,190.53,3.004]
[1738961315539,5.246,190.6,190.53,8.2517]
[1738961315737,0.0378906,190.63,190.49,106.631]
[1738961315738,23.69105932,190.62,190.49,103.78]
[1738961315937,4.1783,190.59,190.49,103.78]
[1738961316137,5.2472,190.55,190.49,109.0288]
[1738961316531,27.86935932,190.59,190.49,103.78]
[1738961316836,0.03975701,190.54,190.49,103.78]
[1738961317040,0.03975701,190.54,190.46,7.21888822]
[1738961317738,23.69105932,190.53,190.46,7.21888822]
[1738961318138,23.69105932,190.53,190.4,394.49271891]
[1738961318139,23.69105932,190.53,190.4,28.8755529]
[1738961318338,5.2496,190.46,190.4,34.1268529]
[1738961318537,23.69105932,190.53,190.4,34.1268529]
[1738961318842,0.03664833,190.48,190.4,28.8755529]
[1738961319441,0.03664833,190.48,190.42,5.2506]
[1738961319642,0.03664833,190.48,190.4,52.56661222]
[1738961319847,0.03664833,190.48,190.43,23.69105932]
[1738961320041,0.03664833,190.48,190.47,5.2493]
[1738961320748,191.0,190.55,190.46,23.69105932]
[1738961320948,3.0683,190.58,190.46,23.69105932]
[1738961321446,4.1783,190.59,190.47,7.0593]
[1738961321946,0.0398314,190.55,190.51,0.03697379]
[1738961322343,5.248,190.52,190.51,0.03697379]
[1738961323047,23.69105932,190.53,190.36,23.69105932]
[1738961323246,23.69105932,190.53,190.36,27.96255932]
[1738961323446,23.69105932,190.53,190.41,5.2507]
[1738961323641,2.9202,190.54,190.39,23.69105932]
[1738961323842,20.99,190.53,190.39,23.69105932]
[1738961324345,0.03719555,190.48,190.36,27.96255932]
[1738961324745,44.68105932,190.53,190.36,27.96255932]
[1738961324945,0.0345065,190.44,190.36,4.2715]
[1738961325549,0.0345065,190.44,190.35,2.9173]
[1738961325748,23.72556582,190.44,190.34,103.8]
[1738961325949,5.251,190.41,190.34,103.8]
[1738961326143,23.72556582,190.44,190.34,103.8]
[1738961326345,23.69105932,190.44,190.34,103.8]
[1738961326542,5.28456068,190.41,190.34,103.8]
[1738961326861,5.251,190.41,190.34,103.8]
[1738961327085,5.251,190.41,190.35,5.2524]
[1738961327327,5.2518,190.38,190.34,103.8]
[1738961327550,0.03582502,190.39,190.34,103.8]
[1738961327847,5.2524,190.36,190.34,103.8]
[1738961328345,0.03582502,190.39,190.34,103.8]
[1738961329348,0.03582502,190.39,190.29,2.9034]
[1738961329949,0.03582502,190.39,190.24,23.69105932]
[1738961330152,5.2535,190.32,190.27,5.2546]
[1738961330346,4.3439,190.42,190.24,26.78065932]
[1738961330650,5.2544,190.29,190.24,3.0896]
[1738961331447,0.03609937,190.28,190.19,103.9]
[1738961331845,5.2559,190.24,190.17,5.2574]
[1738961332050,23.78999937,190.28,190.16,3.0904]
[1738961332248,23.7539,190.28,190.16,3.0904]
[1738961332448,0.03618143,190.24,190.16,3.0904]
[1738961332946,11.2128,190.28,190.21,23.69105932]
[1738961333255,23.69105932,190.41,190.24,23.69105932]
[1738961333448,5.2526,190.36,190.24,28.94665932]
[1738961333652,0.1231,190.4,190.24,23.69105932]
[1738961333855,7.1296,190.43,190.27,23.69105932]
[1738961334048,0.04029212,190.34,190.3,0.03746103]
[1738961334248,0.04029212,190.34,190.33,23.69105932]
[1738961334449,21.0,190.39,190.33,23.69105932]
[1738961334649,21.0,190.39,190.36,23.69105932]
[1738961334943,7.3402,190.49,190.36,23.69105932]
[1738961335148,7.3402,190.49,190.39,23.69105932]
[1738961335345,3.0424,190.57,190.39,23.69105932]
[1738961335547,3.0424,190.57,190.32,4.76]
[1738961335548,5.2475,190.54,190.42,28.94155932]
[1738961335750,0.03723263,190.46,190.45,23.69105932]
[1738961336049,23.69105932,190.62,190.46,5.2495]
[1738961336050,5.247,190.56,190.46,5.2495]
[1738961336251,20.99,190.54,190.48,23.69105932]
[1738961336456,20.99,190.54,190.51,23.69105932]
[1738961336649,20.99,190.54,190.52,5.2478]
[1738961336955,45.79397129,190.65,190.51,23.69105932]
[1738961337153,5.2459,190.6,190.49,5.2487]
[1738961337351,0.03834092,190.55,190.51,0.03561894]
[1738961338052,1.19834092,190.55,190.51,23.72667826]
[1738961338654,1.19834092,190.55,190.54,23.69105932]
[1738961338956,13.35,190.6,190.54,23.69105932]
[1738961339152,45.79397129,190.65,190.59,23.69105932]
[1738961339357,45.79397129,190.65,190.55,2.8816]
[1738961339953,5.2451,190.63,190.55,2.8816]
[1738961340157,0.03931419,190.62,190.58,0.03668716]
[1738961340454,5.2459,190.6,190.58,0.03668716]
[1738961340658,5.2459,190.6,190.49,109.1887]
[1738961341353,3.1145,190.61,190.51,5.2481]
[1738961341652,3.1145,190.61,190.49,103.94]
[1738961341857,5.247,190.56,190.49,103.94]
[1738961342060,5.247,190.56,190.54,0.03880254]
[1738961342254,0.03847915,190.58,190.54,0.03880254]
[1738961343260,5.2485,190.5,190.49,103.94]
[1738961343460,5.2485,190.5,190.4,8.3084]
[1738961343850,23.69105932,190.52,190.4,3.0571]
[1738961344054,23.69105932,190.49,190.4,3.0571]
[1738961344459,0.03481639,190.48,190.44,0.04018385]
[1738961345956,5.2499,190.45,190.44,0.04018385]
[1738961346461,0.03481639,190.48,190.44,0.04018385]
[1738961346660,0.03481639,190.48,190.35,8.3782]
[1738961346956,23.69105932,190.46,190.35,8.3782]
[1738961347160,23.69105932,190.43,190.34,103.92]
[1738961347360,5.2515,190.4,190.34,103.92]
[1738961347560,23.69105932,190.43,190.34,103.92]
[1738961348063,23.73054883,190.4,190.37,0.03666487]
[1738961348361,23.69105932,190.4,190.34,103.92]
[1738961348563,5.2524,190.36,190.34,103.92]
[1738961348863,23.72996909,190.4,190.35,0.03319038]
[1738961349055,0.03890977,190.4,190.35,0.03319038]
[1738961349657,5.29020977,190.4,190.35,0.03319038]
[1738961349862,23.72996909,190.4,190.35,0.03319038]
[1738961350363,3.2017,190.39,190.35,0.03319038]
[1738961350563,5.2524,190.36,190.35,0.03319038]
[1738961351664,3.2017,190.39,190.35,0.03319038]
[1738961351857,23.72996909,190.4,190.35,0.03319038]